{"text_format":"3","workbook":"xlsx","n_sheets":6,"sheets":["Приладна дошка","Збут","Прибуток","Витрати","Податки","Категорії"],"not_rendered":{"images":1,"defined_names":34},"read":"whole","date_system":"1900"}

{"sheet":"Приладна дошка","index":0,"n_rows":20,"n_cols":8,"rows_kept":20,"merged":[[0,2,0,4],[0,6,3,7],[5,1,5,7]]}
[null,"Звіт про доходи та збитки","За [місяць року], що завершується [день-місяць-рік]"]
[null,"Назва компанії","Виражено в тисячах"]
[null,"Поточний валовий дохід [L/Д]",{"$f":"IFERROR(IF(Загальний_валовий_дохід=0,\"-\",Загальний_валовий_дохід/Загальний_дохід_від_збуту),\"-\")","v":"-"}]
[null,"Поточна рентабельність збуту [З/Д]",{"$f":"IFERROR(IF(Чистий_прибуток=0,\"-\",Чистий_прибуток/Загальний_дохід_від_збуту),\"-\")","v":"-"}]
[]
[null,"Не змінюйте категорії на цьому аркуші. Інакше формули можуть не працювати. Скористайтеся аркушем \"Категорія\", щоб додати категорії й наповнити записами відповідні аркуші. Це аркуш оновлюватиметься автоматично."]
[null,"Зведення","Усього за попередній період","Загальний розмір бюджету","Усього за поточний період\nПеріод","Загальна сума за поточний період як відсоток від збуту","Загальний відсоток відхилення від попереднього періоду","Загальний відсоток відхилення від бюджету"]
[null,"Дохід від збуту [Д]",{"$f":"SUMIFS(Дохід_від_збуту_1[Попередній період],Дохід_від_збуту_1[Тип доходу],\"Дохід від збуту\")","v":0},{"$f":"SUMIFS(Дохід_від_збуту_1[Бюджет],Дохід_від_збуту_1[Тип доходу],\"Дохід від збуту\")","v":0},{"$f":"SUMIFS(Дохід_від_збуту_1[Поточний період],Дохід_від_збуту_1[Тип доходу],\"Дохід від збуту\")","v":0},{"$f":"SUMIFS(Дохід_від_збуту_1[Поточний період як відсоток від збуту],Дохід_від_збуту_1[Тип доходу],\"Дохід від збуту\")","v":{"v":0,"d":"0.00%"}},{"$f":"SUMIFS(Дохід_від_збуту_1[Відсоток відхилення від попереднього періоду],Дохід_від_збуту_1[Тип доходу],\"Дохід від збуту\")","v":{"v":0,"d":"0.00%"}},{"$f":"SUMIFS(Дохід_від_збуту_1[Відсоток відхилення від бюджету],Дохід_від_збуту_1[Тип доходу],\"Дохід від збуту\")","v":{"v":0,"d":"0.00%"}}]
[null,"Загальна собівартість [С]",{"$f":"SUMIFS(Дохід_від_збуту_1[Попередній період],Дохід_від_збуту_1[Тип доходу],\"Собівартість збуту\")","v":0},{"$f":"SUMIFS(Дохід_від_збуту_1[Бюджет],Дохід_від_збуту_1[Тип доходу],\"Собівартість збуту\")","v":0},{"$f":"SUMIFS(Дохід_від_збуту_1[Поточний період],Дохід_від_збуту_1[Тип доходу],\"Собівартість збуту\")","v":0},{"$f":"SUMIFS(Дохід_від_збуту_1[Поточний період як відсоток від збуту],Дохід_від_збуту_1[Тип доходу],\"Собівартість збуту\")","v":{"v":0,"d":"0.00%"}},{"$f":"SUMIFS(Дохід_від_збуту_1[Відсоток відхилення від попереднього періоду],Дохід_від_збуту_1[Тип доходу],\"Собівартість збуту\")","v":{"v":0,"d":"0.00%"}},{"$f":"SUMIFS(Дохід_від_збуту_1[Відсоток відхилення від бюджету],Дохід_від_збуту_1[Тип доходу],\"Собівартість збуту\")","v":{"v":0,"d":"0.00%"}}]
[null,"Загальні витрати на збут і маркетинг [М]",{"$f":"SUMIFS(Операційні_витрати[Попередній період],Операційні_витрати[Тип витрати],\"Збут і маркетинг\")","v":0},{"$f":"SUMIFS(Операційні_витрати[Бюджет],Операційні_витрати[Тип витрати],\"Збут і маркетинг\")","v":0},{"$f":"SUMIFS(Операційні_витрати[Поточний період],Операційні_витрати[Тип витрати],\"Збут і маркетинг\")","v":0},{"$f":"SUMIFS(Операційні_витрати[Поточний період як відсоток від збуту],Операційні_витрати[Тип витрати],\"Збут і маркетинг\")","v":{"v":0,"d":"0.00%"}},{"$f":"SUMIFS(Операційні_витрати[Відсоток відхилення від попереднього періоду],Операційні_витрати[Тип витрати],\"Збут і маркетинг\")","v":{"v":0,"d":"0.00%"}},{"$f":"SUMIFS(Операційні_витрати[Відсоток відхилення від бюджету],Операційні_витрати[Тип витрати],\"Збут і маркетинг\")","v":{"v":0,"d":"0.00%"}}]
[null,"Загальні витрати на дослідження й розробку [Р]",{"$f":"SUMIFS(Операційні_витрати[Попередній період],Операційні_витрати[Тип витрати],\"Дослідження й розробка\")","v":0},{"$f":"SUMIFS(Операційні_витрати[Бюджет],Операційні_витрати[Тип витрати],\"Дослідження й розробка\")","v":0},{"$f":"SUMIFS(Операційні_витрати[Поточний період],Операційні_витрати[Тип витрати],\"Дослідження й розробка\")","v":0},{"$f":"SUMIFS(Операційні_витрати[Поточний період як відсоток від збуту],Операційні_витрати[Тип витрати],\"Дослідження й розробка\")","v":{"v":0,"d":"0.00%"}},{"$f":"SUMIFS(Операційні_витрати[Відсоток відхилення від попереднього періоду],Операційні_витрати[Тип витрати],\"Дослідження й розробка\")","v":{"v":0,"d":"0.00%"}},{"$f":"SUMIFS(Операційні_витрати[Відсоток відхилення від бюджету],Операційні_витрати[Тип витрати],\"Дослідження й розробка\")","v":{"v":0,"d":"0.00%"}}]
[null,"Загальні й адміністративні витрати [А]",{"$f":"SUMIFS(Операційні_витрати[Попередній період],Операційні_витрати[Тип витрати],\"Загальні й адміністративні\")","v":0},{"$f":"SUMIFS(Операційні_витрати[Бюджет],Операційні_витрати[Тип витрати],\"Загальні й адміністративні\")","v":0},{"$f":"SUMIFS(Операційні_витрати[Поточний період],Операційні_витрати[Тип витрати],\"Загальні й адміністративні\")","v":0},{"$f":"SUMIFS(Операційні_витрати[Поточний період як відсоток від збуту],Операційні_витрати[Тип витрати],\"Загальні й адміністративні\")","v":{"v":0,"d":"0.00%"}},{"$f":"SUMIFS(Операційні_витрати[Відсоток відхилення від попереднього періоду],Операційні_витрати[Тип витрати],\"Загальні й адміністративні\")","v":{"v":0,"d":"0.00%"}},{"$f":"SUMIFS(Операційні_витрати[Відсоток відхилення від бюджету],Операційні_витрати[Тип витрати],\"Загальні й адміністративні\")","v":{"v":0,"d":"0.00%"}}]
[null,"Загальна сума інших операційних витрат [О]",{"$f":"Операційні_витрати[[#Totals],[Попередній період]]-SUM(C10:C12)","v":0},{"$f":"Операційні_витрати[[#Totals],[Бюджет]]-SUM(D10:D12)","v":0},{"$f":"Операційні_витрати[[#Totals],[Поточний період]]-SUM(E10:E12)","v":0},{"$f":"Операційні_витрати[[#Totals],[Поточний період як відсоток від збуту]]-SUM(F10:F12)","v":{"v":0,"d":"0.00%"}},{"$f":"Операційні_витрати[[#Totals],[Відсоток відхилення від попереднього періоду]]-SUM(G10:G12)","v":{"v":0,"d":"0.00%"}},{"$f":"Операційні_витрати[[#Totals],[Відсоток відхилення від бюджету]]-SUM(H10:H12)","v":{"v":0,"d":"0.00%"}}]
[null,"Інший прибуток [П]",{"$f":"Прибуток[[#Totals],[Попередній період]]","v":0},{"$f":"Прибуток[[#Totals],[Бюджет]]","v":0},{"$f":"Прибуток[[#Totals],[Поточний період]]","v":0},{"$f":"Прибуток[[#Totals],[Поточний період як відсоток від збуту]]","v":{"v":0,"d":"0.00%"}},{"$f":"Прибуток[[#Totals],[Відсоток відхилення від попереднього періоду]]","v":{"v":0,"d":"0.00%"}},{"$f":"Прибуток[[#Totals],[Відсоток відхилення від бюджету]]","v":{"v":0,"d":"0.00%"}}]
[null,"Загальна сума податків [З]",{"$f":"Податки[[#Totals],[Попередній період]]","v":0},{"$f":"Податки[[#Totals],[Бюджет]]","v":0},{"$f":"Податки[[#Totals],[Поточний період]]","v":0},{"$f":"Податки[[#Totals],[Поточний період як відсоток від збуту]]","v":{"v":0,"d":"0.00%"}},{"$f":"Податки[[#Totals],[Відсоток відхилення від попереднього періоду]]","v":{"v":0,"d":"0.00%"}},{"$f":"Податки[[#Totals],[Відсоток відхилення від бюджету]]","v":{"v":0,"d":"0.00%"}}]
[]
[null,"Валовий дохід [Ц=Д-С]",{"$f":"IFERROR(C8-C9,\"-\")","v":0},{"$f":"IFERROR(D8-D9,\"-\")","v":0},{"$f":"IFERROR(Загальний_дохід_від_збуту-Загальна_рентабельність_збуту,\"-\")","v":0},{"$f":"IFERROR(IF(Загальний_дохід_від_збуту=0,\"0.00%\",Загальний_валовий_дохід/Загальний_дохід_від_збуту),\"-\")","v":"0.00%"},{"$f":"IFERROR(IF(C17=Загальний_валовий_дохід,0,IF(Загальний_валовий_дохід>C17,ABS((Загальний_валовий_дохід/C17)-1),IF(AND(Загальний_валовий_дохід<C17,C17<0),-((Загальний_валовий_дохід/C17)-1),(Загальний_валовий_дохід/C17)-1))),\"-\")","v":{"v":0,"d":"0.00%"}},{"$f":"IFERROR(IF(D17=Загальний_валовий_дохід,0,IF(Загальний_валовий_дохід>D17,ABS((Загальний_валовий_дохід/D17)-1),IF(AND(Загальний_валовий_дохід<D17,D17<0),-((Загальний_валовий_дохід/D17)-1),(Загальний_валовий_дохід/D17)-1))),\"-\")","v":{"v":0,"d":"0.00%"}}]
[null,"Загальна сума операційних витрат [В=М+Р+А+О]",{"$f":"IFERROR(C10+C11+C12+C13,\"-\")","v":0},{"$f":"IFERROR(D10+D11+D12+D13,\"-\")","v":0},{"$f":"IFERROR(Загальні_витрати_на_збут_і_маркетинг+Загальні_витрати_на_дослідження_й_розробку+Усього_загальних_і_адміністративних_витрат+Усього_інших_витрат,\"-\")","v":0},{"$f":"IFERROR(IF(Загальний_дохід_від_збуту=0,\"0.00%\",Усього_операційних_витрат/Загальний_дохід_від_збуту),\"-\")","v":"0.00%"},{"$f":"IFERROR(IF(C18=Усього_операційних_витрат,0,IF(Усього_операційних_витрат>C18,ABS((Усього_операційних_витрат/C18)-1),IF(AND(Усього_операційних_витрат<C18,C18<0),-((Усього_операційних_витрат/C18)-1),(Усього_операційних_витрат/C18)-1))),\"-\")","v":{"v":0,"d":"0.00%"}},{"$f":"IFERROR(IF(D18=Усього_операційних_витрат,0,IF(Усього_операційних_витрат>D18,ABS((Усього_операційних_витрат/D18)-1),IF(AND(Усього_операційних_витрат<D18,D18<0),-((Усього_операційних_витрат/D18)-1),(Усього_операційних_витрат/D18)-1))),\"-\")","v":{"v":0,"d":"0.00%"}}]
[null,"Прибуток від основних операцій [Я=Ц-В]",{"$f":"IFERROR(C17-C18,\"-\")","v":0},{"$f":"IFERROR(D17-D18,\"-\")","v":0},{"$f":"IFERROR(Загальний_валовий_дохід-Усього_операційних_витрат,\"-\")","v":0},{"$f":"IFERROR(IF(Загальний_дохід_від_збуту=0,\"0.00%\",Загальний_прибуток_від_основних_операцій/Загальний_дохід_від_збуту),\"-\")","v":"0.00%"},{"$f":"IFERROR(IF(C19=Загальний_прибуток_від_основних_операцій,0,IF(Загальний_прибуток_від_основних_операцій>C19,ABS((Загальний_прибуток_від_основних_операцій/C19)-1),IF(AND(Загальний_прибуток_від_основних_операцій<C19,C19<0),-((Загальний_прибуток_від_основних_операцій/C19)-1),(Загальний_прибуток_від_основних_операцій/C19)-1))),\"-\")","v":{"v":0,"d":"0.00%"}},{"$f":"IFERROR(IF(D19=Загальний_прибуток_від_основних_операцій,0,IF(Загальний_прибуток_від_основних_операцій>D19,ABS((Загальний_прибуток_від_основних_операцій/D19)-1),IF(AND(Загальний_прибуток_від_основних_операцій<D19,D19<0),-((Загальний_прибуток_від_основних_операцій/D19)-1),(Загальний_прибуток_від_основних_операцій/D19)-1))),\"-\")","v":{"v":0,"d":"0.00%"}}]
[null,"Чистий прибуток [Ч=Я+П-З]",{"$f":"IFERROR(C19+C14-C15,\"-\")","v":0},{"$f":"IFERROR(D19+D14-D15,\"-\")","v":0},{"$f":"Загальний_прибуток_від_основних_операцій+Загальний_розмір_інших_прибутків-Загальна_сума_податків","v":0},{"$f":"IFERROR(IF(Загальний_дохід_від_збуту=0,\"0.00%\",Чистий_прибуток/Загальний_дохід_від_збуту),\"-\")","v":"0.00%"},{"$f":"IFERROR(IF(C20=Чистий_прибуток,0,IF(Чистий_прибуток>C20,ABS((Чистий_прибуток/C20)-1),IF(AND(Чистий_прибуток<C20,C20<0),-((Чистий_прибуток/C20)-1),(Чистий_прибуток/C20)-1))),\"-\")","v":{"v":0,"d":"0.00%"}},{"$f":"IFERROR(IF(D20=Чистий_прибуток,0,IF(Чистий_прибуток>D20,ABS((Чистий_прибуток/D20)-1),IF(AND(Чистий_прибуток<D20,D20<0),-((Чистий_прибуток/D20)-1),(Чистий_прибуток/D20)-1))),\"-\")","v":{"v":0,"d":"0.00%"}}]

{"sheet":"Збут","index":1,"n_rows":13,"n_cols":9,"rows_kept":13,"merged":[[0,7,2,8]]}
[null,{"$f":"Заголовок_книги","v":"Звіт про доходи та збитки"}]
[null,{"$f":"Назва_компанії","v":"Назва компанії"},"Виражено в тисячах"]
[null,"Дохід від збуту",{"$f":"IFERROR(Дохід_від_збуту,\"-\")","v":0}]
[null,"Тип доходу","Опис","Попередній період","Бюджет","Поточний період","Поточний період як відсоток від збуту","Відсоток відхилення від попереднього періоду","Відсоток відхилення від бюджету"]
[null,"Дохід від збуту","Продукт/послуга 1",{"$nulls":3},{"$f":"IFERROR(IF(Дохід_від_збуту_1[[#Totals],[Поточний період]]=0,\"-\",Дохід_від_збуту_1[[#This Row],[Поточний період]]/Дохід_від_збуту),\"-\")","v":"-"},{"$f":"IFERROR(IF(Дохід_від_збуту_1[[#This Row],[Попередній період]]=Дохід_від_збуту_1[[#This Row],[Поточний період]],0,IF(Дохід_від_збуту_1[[#This Row],[Поточний період]]>Дохід_від_збуту_1[[#This Row],[Попередній період]],ABS((Дохід_від_збуту_1[[#This Row],[Поточний період]]/Дохід_від_збуту_1[[#This Row],[Попередній період]])-1),IF(AND(Дохід_від_збуту_1[[#This Row],[Поточний період]]<Дохід_від_збуту_1[[#This Row],[Попередній період]],Дохід_від_збуту_1[[#This Row],[Попередній період]]<0),-((Дохід_від_збуту_1[[#This Row],[Поточний період]]/Дохід_від_збуту_1[[#This Row],[Попередній період]])-1),(Дохід_від_збуту_1[[#This Row],[Поточний період]]/Дохід_від_збуту_1[[#This Row],[Попередній період]])-1))),\"-\")","v":{"v":0,"d":"0.00%"}},{"$f":"IFERROR(IF(Дохід_від_збуту_1[[#This Row],[Бюджет]]=Дохід_від_збуту_1[[#This Row],[Поточний період]],0,IF(Дохід_від_збуту_1[[#This Row],[Поточний період]]>Дохід_від_збуту_1[[#This Row],[Бюджет]],ABS((Дохід_від_збуту_1[[#This Row],[Поточний період]]/Дохід_від_збуту_1[[#This Row],[Бюджет]])-1),IF(AND(Дохід_від_збуту_1[[#This Row],[Поточний період]]<Дохід_від_збуту_1[[#This Row],[Бюджет]],Дохід_від_збуту_1[[#This Row],[Бюджет]]<0),-((Дохід_від_збуту_1[[#This Row],[Поточний період]]/Дохід_від_збуту_1[[#This Row],[Бюджет]])-1),(Дохід_від_збуту_1[[#This Row],[Поточний період]]/Дохід_від_збуту_1[[#This Row],[Бюджет]])-1))),\"-\")","v":{"v":0,"d":"0.00%"}}]
[null,"Дохід від збуту","Продукт/послуга 2",{"$nulls":3},{"$f":"IFERROR(IF(Дохід_від_збуту_1[[#Totals],[Поточний період]]=0,\"-\",Дохід_від_збуту_1[[#This Row],[Поточний період]]/Дохід_від_збуту),\"-\")","v":"-"},{"$f":"IFERROR(IF(Дохід_від_збуту_1[[#This Row],[Попередній період]]=Дохід_від_збуту_1[[#This Row],[Поточний період]],0,IF(Дохід_від_збуту_1[[#This Row],[Поточний період]]>Дохід_від_збуту_1[[#This Row],[Попередній період]],ABS((Дохід_від_збуту_1[[#This Row],[Поточний період]]/Дохід_від_збуту_1[[#This Row],[Попередній період]])-1),IF(AND(Дохід_від_збуту_1[[#This Row],[Поточний період]]<Дохід_від_збуту_1[[#This Row],[Попередній період]],Дохід_від_збуту_1[[#This Row],[Попередній період]]<0),-((Дохід_від_збуту_1[[#This Row],[Поточний період]]/Дохід_від_збуту_1[[#This Row],[Попередній період]])-1),(Дохід_від_збуту_1[[#This Row],[Поточний період]]/Дохід_від_збуту_1[[#This Row],[Попередній період]])-1))),\"-\")","v":{"v":0,"d":"0.00%"}},{"$f":"IFERROR(IF(Дохід_від_збуту_1[[#This Row],[Бюджет]]=Дохід_від_збуту_1[[#This Row],[Поточний період]],0,IF(Дохід_від_збуту_1[[#This Row],[Поточний період]]>Дохід_від_збуту_1[[#This Row],[Бюджет]],ABS((Дохід_від_збуту_1[[#This Row],[Поточний період]]/Дохід_від_збуту_1[[#This Row],[Бюджет]])-1),IF(AND(Дохід_від_збуту_1[[#This Row],[Поточний період]]<Дохід_від_збуту_1[[#This Row],[Бюджет]],Дохід_від_збуту_1[[#This Row],[Бюджет]]<0),-((Дохід_від_збуту_1[[#This Row],[Поточний період]]/Дохід_від_збуту_1[[#This Row],[Бюджет]])-1),(Дохід_від_збуту_1[[#This Row],[Поточний період]]/Дохід_від_збуту_1[[#This Row],[Бюджет]])-1))),\"-\")","v":{"v":0,"d":"0.00%"}}]
[null,"Дохід від збуту","Продукт/послуга 3",{"$nulls":3},{"$f":"IFERROR(IF(Дохід_від_збуту_1[[#Totals],[Поточний період]]=0,\"-\",Дохід_від_збуту_1[[#This Row],[Поточний період]]/Дохід_від_збуту),\"-\")","v":"-"},{"$f":"IFERROR(IF(Дохід_від_збуту_1[[#This Row],[Попередній період]]=Дохід_від_збуту_1[[#This Row],[Поточний період]],0,IF(Дохід_від_збуту_1[[#This Row],[Поточний період]]>Дохід_від_збуту_1[[#This Row],[Попередній період]],ABS((Дохід_від_збуту_1[[#This Row],[Поточний період]]/Дохід_від_збуту_1[[#This Row],[Попередній період]])-1),IF(AND(Дохід_від_збуту_1[[#This Row],[Поточний період]]<Дохід_від_збуту_1[[#This Row],[Попередній період]],Дохід_від_збуту_1[[#This Row],[Попередній період]]<0),-((Дохід_від_збуту_1[[#This Row],[Поточний період]]/Дохід_від_збуту_1[[#This Row],[Попередній період]])-1),(Дохід_від_збуту_1[[#This Row],[Поточний період]]/Дохід_від_збуту_1[[#This Row],[Попередній період]])-1))),\"-\")","v":{"v":0,"d":"0.00%"}},{"$f":"IFERROR(IF(Дохід_від_збуту_1[[#This Row],[Бюджет]]=Дохід_від_збуту_1[[#This Row],[Поточний період]],0,IF(Дохід_від_збуту_1[[#This Row],[Поточний період]]>Дохід_від_збуту_1[[#This Row],[Бюджет]],ABS((Дохід_від_збуту_1[[#This Row],[Поточний період]]/Дохід_від_збуту_1[[#This Row],[Бюджет]])-1),IF(AND(Дохід_від_збуту_1[[#This Row],[Поточний період]]<Дохід_від_збуту_1[[#This Row],[Бюджет]],Дохід_від_збуту_1[[#This Row],[Бюджет]]<0),-((Дохід_від_збуту_1[[#This Row],[Поточний період]]/Дохід_від_збуту_1[[#This Row],[Бюджет]])-1),(Дохід_від_збуту_1[[#This Row],[Поточний період]]/Дохід_від_збуту_1[[#This Row],[Бюджет]])-1))),\"-\")","v":{"v":0,"d":"0.00%"}}]
[null,"Дохід від збуту","Продукт/послуга 4",{"$nulls":3},{"$f":"IFERROR(IF(Дохід_від_збуту_1[[#Totals],[Поточний період]]=0,\"-\",Дохід_від_збуту_1[[#This Row],[Поточний період]]/Дохід_від_збуту),\"-\")","v":"-"},{"$f":"IFERROR(IF(Дохід_від_збуту_1[[#This Row],[Попередній період]]=Дохід_від_збуту_1[[#This Row],[Поточний період]],0,IF(Дохід_від_збуту_1[[#This Row],[Поточний період]]>Дохід_від_збуту_1[[#This Row],[Попередній період]],ABS((Дохід_від_збуту_1[[#This Row],[Поточний період]]/Дохід_від_збуту_1[[#This Row],[Попередній період]])-1),IF(AND(Дохід_від_збуту_1[[#This Row],[Поточний період]]<Дохід_від_збуту_1[[#This Row],[Попередній період]],Дохід_від_збуту_1[[#This Row],[Попередній період]]<0),-((Дохід_від_збуту_1[[#This Row],[Поточний період]]/Дохід_від_збуту_1[[#This Row],[Попередній період]])-1),(Дохід_від_збуту_1[[#This Row],[Поточний період]]/Дохід_від_збуту_1[[#This Row],[Попередній період]])-1))),\"-\")","v":{"v":0,"d":"0.00%"}},{"$f":"IFERROR(IF(Дохід_від_збуту_1[[#This Row],[Бюджет]]=Дохід_від_збуту_1[[#This Row],[Поточний період]],0,IF(Дохід_від_збуту_1[[#This Row],[Поточний період]]>Дохід_від_збуту_1[[#This Row],[Бюджет]],ABS((Дохід_від_збуту_1[[#This Row],[Поточний період]]/Дохід_від_збуту_1[[#This Row],[Бюджет]])-1),IF(AND(Дохід_від_збуту_1[[#This Row],[Поточний період]]<Дохід_від_збуту_1[[#This Row],[Бюджет]],Дохід_від_збуту_1[[#This Row],[Бюджет]]<0),-((Дохід_від_збуту_1[[#This Row],[Поточний період]]/Дохід_від_збуту_1[[#This Row],[Бюджет]])-1),(Дохід_від_збуту_1[[#This Row],[Поточний період]]/Дохід_від_збуту_1[[#This Row],[Бюджет]])-1))),\"-\")","v":{"v":0,"d":"0.00%"}}]
[null,"Собівартість збуту","Продукт/послуга 1",{"$nulls":3},{"$f":"IFERROR(IF(Дохід_від_збуту_1[[#Totals],[Поточний період]]=0,\"-\",Дохід_від_збуту_1[[#This Row],[Поточний період]]/Дохід_від_збуту),\"-\")","v":"-"},{"$f":"IFERROR(IF(Дохід_від_збуту_1[[#This Row],[Попередній період]]=Дохід_від_збуту_1[[#This Row],[Поточний період]],0,IF(Дохід_від_збуту_1[[#This Row],[Поточний період]]>Дохід_від_збуту_1[[#This Row],[Попередній період]],ABS((Дохід_від_збуту_1[[#This Row],[Поточний період]]/Дохід_від_збуту_1[[#This Row],[Попередній період]])-1),IF(AND(Дохід_від_збуту_1[[#This Row],[Поточний період]]<Дохід_від_збуту_1[[#This Row],[Попередній період]],Дохід_від_збуту_1[[#This Row],[Попередній період]]<0),-((Дохід_від_збуту_1[[#This Row],[Поточний період]]/Дохід_від_збуту_1[[#This Row],[Попередній період]])-1),(Дохід_від_збуту_1[[#This Row],[Поточний період]]/Дохід_від_збуту_1[[#This Row],[Попередній період]])-1))),\"-\")","v":{"v":0,"d":"0.00%"}},{"$f":"IFERROR(IF(Дохід_від_збуту_1[[#This Row],[Бюджет]]=Дохід_від_збуту_1[[#This Row],[Поточний період]],0,IF(Дохід_від_збуту_1[[#This Row],[Поточний період]]>Дохід_від_збуту_1[[#This Row],[Бюджет]],ABS((Дохід_від_збуту_1[[#This Row],[Поточний період]]/Дохід_від_збуту_1[[#This Row],[Бюджет]])-1),IF(AND(Дохід_від_збуту_1[[#This Row],[Поточний період]]<Дохід_від_збуту_1[[#This Row],[Бюджет]],Дохід_від_збуту_1[[#This Row],[Бюджет]]<0),-((Дохід_від_збуту_1[[#This Row],[Поточний період]]/Дохід_від_збуту_1[[#This Row],[Бюджет]])-1),(Дохід_від_збуту_1[[#This Row],[Поточний період]]/Дохід_від_збуту_1[[#This Row],[Бюджет]])-1))),\"-\")","v":{"v":0,"d":"0.00%"}}]
[null,"Собівартість збуту","Продукт/послуга 2",{"$nulls":3},{"$f":"IFERROR(IF(Дохід_від_збуту_1[[#Totals],[Поточний період]]=0,\"-\",Дохід_від_збуту_1[[#This Row],[Поточний період]]/Дохід_від_збуту),\"-\")","v":"-"},{"$f":"IFERROR(IF(Дохід_від_збуту_1[[#This Row],[Попередній період]]=Дохід_від_збуту_1[[#This Row],[Поточний період]],0,IF(Дохід_від_збуту_1[[#This Row],[Поточний період]]>Дохід_від_збуту_1[[#This Row],[Попередній період]],ABS((Дохід_від_збуту_1[[#This Row],[Поточний період]]/Дохід_від_збуту_1[[#This Row],[Попередній період]])-1),IF(AND(Дохід_від_збуту_1[[#This Row],[Поточний період]]<Дохід_від_збуту_1[[#This Row],[Попередній період]],Дохід_від_збуту_1[[#This Row],[Попередній період]]<0),-((Дохід_від_збуту_1[[#This Row],[Поточний період]]/Дохід_від_збуту_1[[#This Row],[Попередній період]])-1),(Дохід_від_збуту_1[[#This Row],[Поточний період]]/Дохід_від_збуту_1[[#This Row],[Попередній період]])-1))),\"-\")","v":{"v":0,"d":"0.00%"}},{"$f":"IFERROR(IF(Дохід_від_збуту_1[[#This Row],[Бюджет]]=Дохід_від_збуту_1[[#This Row],[Поточний період]],0,IF(Дохід_від_збуту_1[[#This Row],[Поточний період]]>Дохід_від_збуту_1[[#This Row],[Бюджет]],ABS((Дохід_від_збуту_1[[#This Row],[Поточний період]]/Дохід_від_збуту_1[[#This Row],[Бюджет]])-1),IF(AND(Дохід_від_збуту_1[[#This Row],[Поточний період]]<Дохід_від_збуту_1[[#This Row],[Бюджет]],Дохід_від_збуту_1[[#This Row],[Бюджет]]<0),-((Дохід_від_збуту_1[[#This Row],[Поточний період]]/Дохід_від_збуту_1[[#This Row],[Бюджет]])-1),(Дохід_від_збуту_1[[#This Row],[Поточний період]]/Дохід_від_збуту_1[[#This Row],[Бюджет]])-1))),\"-\")","v":{"v":0,"d":"0.00%"}}]
[null,"Собівартість збуту","Продукт/послуга 3",{"$nulls":3},{"$f":"IFERROR(IF(Дохід_від_збуту_1[[#Totals],[Поточний період]]=0,\"-\",Дохід_від_збуту_1[[#This Row],[Поточний період]]/Дохід_від_збуту),\"-\")","v":"-"},{"$f":"IFERROR(IF(Дохід_від_збуту_1[[#This Row],[Попередній період]]=Дохід_від_збуту_1[[#This Row],[Поточний період]],0,IF(Дохід_від_збуту_1[[#This Row],[Поточний період]]>Дохід_від_збуту_1[[#This Row],[Попередній період]],ABS((Дохід_від_збуту_1[[#This Row],[Поточний період]]/Дохід_від_збуту_1[[#This Row],[Попередній період]])-1),IF(AND(Дохід_від_збуту_1[[#This Row],[Поточний період]]<Дохід_від_збуту_1[[#This Row],[Попередній період]],Дохід_від_збуту_1[[#This Row],[Попередній період]]<0),-((Дохід_від_збуту_1[[#This Row],[Поточний період]]/Дохід_від_збуту_1[[#This Row],[Попередній період]])-1),(Дохід_від_збуту_1[[#This Row],[Поточний період]]/Дохід_від_збуту_1[[#This Row],[Попередній період]])-1))),\"-\")","v":{"v":0,"d":"0.00%"}},{"$f":"IFERROR(IF(Дохід_від_збуту_1[[#This Row],[Бюджет]]=Дохід_від_збуту_1[[#This Row],[Поточний період]],0,IF(Дохід_від_збуту_1[[#This Row],[Поточний період]]>Дохід_від_збуту_1[[#This Row],[Бюджет]],ABS((Дохід_від_збуту_1[[#This Row],[Поточний період]]/Дохід_від_збуту_1[[#This Row],[Бюджет]])-1),IF(AND(Дохід_від_збуту_1[[#This Row],[Поточний період]]<Дохід_від_збуту_1[[#This Row],[Бюджет]],Дохід_від_збуту_1[[#This Row],[Бюджет]]<0),-((Дохід_від_збуту_1[[#This Row],[Поточний період]]/Дохід_від_збуту_1[[#This Row],[Бюджет]])-1),(Дохід_від_збуту_1[[#This Row],[Поточний період]]/Дохід_від_збуту_1[[#This Row],[Бюджет]])-1))),\"-\")","v":{"v":0,"d":"0.00%"}}]
[null,"Собівартість збуту","Продукт/послуга 4",{"$nulls":3},{"$f":"IFERROR(IF(Дохід_від_збуту_1[[#Totals],[Поточний період]]=0,\"-\",Дохід_від_збуту_1[[#This Row],[Поточний період]]/Дохід_від_збуту),\"-\")","v":"-"},{"$f":"IFERROR(IF(Дохід_від_збуту_1[[#This Row],[Попередній період]]=Дохід_від_збуту_1[[#This Row],[Поточний період]],0,IF(Дохід_від_збуту_1[[#This Row],[Поточний період]]>Дохід_від_збуту_1[[#This Row],[Попередній період]],ABS((Дохід_від_збуту_1[[#This Row],[Поточний період]]/Дохід_від_збуту_1[[#This Row],[Попередній період]])-1),IF(AND(Дохід_від_збуту_1[[#This Row],[Поточний період]]<Дохід_від_збуту_1[[#This Row],[Попередній період]],Дохід_від_збуту_1[[#This Row],[Попередній період]]<0),-((Дохід_від_збуту_1[[#This Row],[Поточний період]]/Дохід_від_збуту_1[[#This Row],[Попередній період]])-1),(Дохід_від_збуту_1[[#This Row],[Поточний період]]/Дохід_від_збуту_1[[#This Row],[Попередній період]])-1))),\"-\")","v":{"v":0,"d":"0.00%"}},{"$f":"IFERROR(IF(Дохід_від_збуту_1[[#This Row],[Бюджет]]=Дохід_від_збуту_1[[#This Row],[Поточний період]],0,IF(Дохід_від_збуту_1[[#This Row],[Поточний період]]>Дохід_від_збуту_1[[#This Row],[Бюджет]],ABS((Дохід_від_збуту_1[[#This Row],[Поточний період]]/Дохід_від_збуту_1[[#This Row],[Бюджет]])-1),IF(AND(Дохід_від_збуту_1[[#This Row],[Поточний період]]<Дохід_від_збуту_1[[#This Row],[Бюджет]],Дохід_від_збуту_1[[#This Row],[Бюджет]]<0),-((Дохід_від_збуту_1[[#This Row],[Поточний період]]/Дохід_від_збуту_1[[#This Row],[Бюджет]])-1),(Дохід_від_збуту_1[[#This Row],[Поточний період]]/Дохід_від_збуту_1[[#This Row],[Бюджет]])-1))),\"-\")","v":{"v":0,"d":"0.00%"}}]
[null,"Загальний дохід від збуту",null,{"$f":"SUBTOTAL(109,Дохід_від_збуту_1[Попередній період])","v":0},{"$f":"SUBTOTAL(109,Дохід_від_збуту_1[Бюджет])","v":0},{"$f":"SUBTOTAL(109,Дохід_від_збуту_1[Поточний період])","v":0},{"$f":"SUBTOTAL(109,Дохід_від_збуту_1[Поточний період як відсоток від збуту])","v":{"v":0,"d":"0.00%"}},{"$f":"SUBTOTAL(109,Дохід_від_збуту_1[Відсоток відхилення від попереднього періоду])","v":{"v":0,"d":"0.00%"}},{"$f":"SUBTOTAL(109,Дохід_від_збуту_1[Відсоток відхилення від бюджету])","v":{"v":0,"d":"0.00%"}}]

{"sheet":"Прибуток","index":2,"n_rows":7,"n_cols":9,"rows_kept":7,"merged":[[0,7,2,8]]}
[null,{"$f":"Заголовок_книги","v":"Звіт про доходи та збитки"}]
[null,{"$f":"Назва_компанії","v":"Назва компанії"},"Виражено в тисячах"]
[null,"Прибуток",{"$f":"IFERROR(Прибуток[[#Totals],[Поточний період]],\"-\")","v":0}]
[null,"Тип прибутку","Опис","Попередній період","Бюджет","Поточний період","Поточний період як відсоток від збуту","Відсоток відхилення від попереднього періоду","Відсоток відхилення від бюджету"]
[null,"Прибуток","Інший прибуток",{"$nulls":3},{"$f":"IFERROR(IF(Дохід_від_збуту=0,\"-\",Прибуток[[#This Row],[Поточний період]]/Дохід_від_збуту),\"-\")","v":"-"},{"$f":"IFERROR(IF(Прибуток[[#This Row],[Попередній період]]=Прибуток[[#This Row],[Поточний період]],0,IF(Прибуток[[#This Row],[Поточний період]]>Прибуток[[#This Row],[Попередній період]],ABS((Прибуток[[#This Row],[Поточний період]]/Прибуток[[#This Row],[Попередній період]])-1),IF(AND(Прибуток[[#This Row],[Поточний період]]<Прибуток[[#This Row],[Попередній період]],Прибуток[[#This Row],[Попередній період]]<0),-((Прибуток[[#This Row],[Поточний період]]/Прибуток[[#This Row],[Попередній період]])-1),(Прибуток[[#This Row],[Поточний період]]/Прибуток[[#This Row],[Попередній період]])-1))),\"-\")","v":{"v":0,"d":"0.00%"}},{"$f":"IFERROR(IF(Прибуток[[#This Row],[Бюджет]]=Прибуток[[#This Row],[Поточний період]],0,IF(Прибуток[[#This Row],[Поточний період]]>Прибуток[[#This Row],[Бюджет]],ABS((Прибуток[[#This Row],[Поточний період]]/Прибуток[[#This Row],[Бюджет]])-1),IF(AND(Прибуток[[#This Row],[Поточний період]]<Прибуток[[#This Row],[Бюджет]],Прибуток[[#This Row],[Бюджет]]<0),-((Прибуток[[#This Row],[Поточний період]]/Прибуток[[#This Row],[Бюджет]])-1),(Прибуток[[#This Row],[Поточний період]]/Прибуток[[#This Row],[Бюджет]])-1))),\"-\")","v":{"v":0,"d":"0.00%"}}]
[{"$nulls":6},{"$f":"IFERROR(IF(Дохід_від_збуту=0,\"-\",Прибуток[[#This Row],[Поточний період]]/Дохід_від_збуту),\"-\")","v":"-"},{"$f":"IFERROR(IF(Прибуток[[#This Row],[Попередній період]]=Прибуток[[#This Row],[Поточний період]],0,IF(Прибуток[[#This Row],[Поточний період]]>Прибуток[[#This Row],[Попередній період]],ABS((Прибуток[[#This Row],[Поточний період]]/Прибуток[[#This Row],[Попередній період]])-1),IF(AND(Прибуток[[#This Row],[Поточний період]]<Прибуток[[#This Row],[Попередній період]],Прибуток[[#This Row],[Попередній період]]<0),-((Прибуток[[#This Row],[Поточний період]]/Прибуток[[#This Row],[Попередній період]])-1),(Прибуток[[#This Row],[Поточний період]]/Прибуток[[#This Row],[Попередній період]])-1))),\"-\")","v":{"v":0,"d":"0.00%"}},{"$f":"IFERROR(IF(Прибуток[[#This Row],[Бюджет]]=Прибуток[[#This Row],[Поточний період]],0,IF(Прибуток[[#This Row],[Поточний період]]>Прибуток[[#This Row],[Бюджет]],ABS((Прибуток[[#This Row],[Поточний період]]/Прибуток[[#This Row],[Бюджет]])-1),IF(AND(Прибуток[[#This Row],[Поточний період]]<Прибуток[[#This Row],[Бюджет]],Прибуток[[#This Row],[Бюджет]]<0),-((Прибуток[[#This Row],[Поточний період]]/Прибуток[[#This Row],[Бюджет]])-1),(Прибуток[[#This Row],[Поточний період]]/Прибуток[[#This Row],[Бюджет]])-1))),\"-\")","v":{"v":0,"d":"0.00%"}}]
[null,"Загальний прибуток від збуту",null,{"$f":"SUBTOTAL(109,Прибуток[Попередній період])","v":0},{"$f":"SUBTOTAL(109,Прибуток[Бюджет])","v":0},{"$f":"SUBTOTAL(109,Прибуток[Поточний період])","v":0},{"$f":"SUBTOTAL(109,Прибуток[Поточний період як відсоток від збуту])","v":{"v":0,"d":"0.00%"}},{"$f":"SUBTOTAL(109,Прибуток[Відсоток відхилення від попереднього періоду])","v":{"v":0,"d":"0.00%"}},{"$f":"SUBTOTAL(109,Прибуток[Відсоток відхилення від бюджету])","v":{"v":0,"d":"0.00%"}}]

{"sheet":"Витрати","index":3,"n_rows":25,"n_cols":9,"rows_kept":25,"merged":[[0,7,2,8]]}
[null,{"$f":"Заголовок_книги","v":"Звіт про доходи та збитки"}]
[null,{"$f":"Назва_компанії","v":"Назва компанії"},"Виражено в тисячах"]
[null,"ОПЕРАЦІЙНІ ВИТРАТИ",{"$f":"IFERROR(Операційні_витрати[[#Totals],[Поточний період]],\"-\")","v":0}]
[null,"Тип витрати","Опис","Попередній період","Бюджет","Поточний період","Поточний період як відсоток від збуту","Відсоток відхилення від попереднього періоду","Відсоток відхилення від бюджету"]
[null,"Збут і маркетинг","Реклама",{"$nulls":3},{"$f":"IFERROR(IF(Дохід_від_збуту=0,\"-\",Операційні_витрати[[#This Row],[Поточний період]]/Дохід_від_збуту),\"-\")","v":"-"},{"$f":"IFERROR(IF(Операційні_витрати[[#This Row],[Попередній період]]=Операційні_витрати[[#This Row],[Поточний період]],0,IF(Операційні_витрати[[#This Row],[Поточний період]]>Операційні_витрати[[#This Row],[Попередній період]],ABS((Операційні_витрати[[#This Row],[Поточний період]]/Операційні_витрати[[#This Row],[Попередній період]])-1),IF(AND(Операційні_витрати[[#This Row],[Поточний період]]<Операційні_витрати[[#This Row],[Попередній період]],Операційні_витрати[[#This Row],[Попередній період]]<0),-((Операційні_витрати[[#This Row],[Поточний період]]/Операційні_витрати[[#This Row],[Попередній період]])-1),(Операційні_витрати[[#This Row],[Поточний період]]/Операційні_витрати[[#This Row],[Попередній період]])-1))),\"-\")","v":{"v":0,"d":"0.00%"}},{"$f":"IFERROR(IF(Операційні_витрати[[#This Row],[Бюджет]]=Операційні_витрати[[#This Row],[Поточний період]],0,IF(Операційні_витрати[[#This Row],[Поточний період]]>Операційні_витрати[[#This Row],[Бюджет]],ABS((Операційні_витрати[[#This Row],[Поточний період]]/Операційні_витрати[[#This Row],[Бюджет]])-1),IF(AND(Операційні_витрати[[#This Row],[Поточний період]]<Операційні_витрати[[#This Row],[Бюджет]],Операційні_витрати[[#This Row],[Бюджет]]<0),-((Операційні_витрати[[#This Row],[Поточний період]]/Операційні_витрати[[#This Row],[Бюджет]])-1),(Операційні_витрати[[#This Row],[Поточний період]]/Операційні_витрати[[#This Row],[Бюджет]])-1))),\"-\")","v":{"v":0,"d":"0.00%"}}]
[null,"Збут і маркетинг","Прямий маркетинг",{"$nulls":3},{"$f":"IFERROR(IF(Дохід_від_збуту=0,\"-\",Операційні_витрати[[#This Row],[Поточний період]]/Дохід_від_збуту),\"-\")","v":"-"},{"$f":"IFERROR(IF(Операційні_витрати[[#This Row],[Попередній період]]=Операційні_витрати[[#This Row],[Поточний період]],0,IF(Операційні_витрати[[#This Row],[Поточний період]]>Операційні_витрати[[#This Row],[Попередній період]],ABS((Операційні_витрати[[#This Row],[Поточний період]]/Операційні_витрати[[#This Row],[Попередній період]])-1),IF(AND(Операційні_витрати[[#This Row],[Поточний період]]<Операційні_витрати[[#This Row],[Попередній період]],Операційні_витрати[[#This Row],[Попередній період]]<0),-((Операційні_витрати[[#This Row],[Поточний період]]/Операційні_витрати[[#This Row],[Попередній період]])-1),(Операційні_витрати[[#This Row],[Поточний період]]/Операційні_витрати[[#This Row],[Попередній період]])-1))),\"-\")","v":{"v":0,"d":"0.00%"}},{"$f":"IFERROR(IF(Операційні_витрати[[#This Row],[Бюджет]]=Операційні_витрати[[#This Row],[Поточний період]],0,IF(Операційні_витрати[[#This Row],[Поточний період]]>Операційні_витрати[[#This Row],[Бюджет]],ABS((Операційні_витрати[[#This Row],[Поточний період]]/Операційні_витрати[[#This Row],[Бюджет]])-1),IF(AND(Операційні_витрати[[#This Row],[Поточний період]]<Операційні_витрати[[#This Row],[Бюджет]],Операційні_витрати[[#This Row],[Бюджет]]<0),-((Операційні_витрати[[#This Row],[Поточний період]]/Операційні_витрати[[#This Row],[Бюджет]])-1),(Операційні_витрати[[#This Row],[Поточний період]]/Операційні_витрати[[#This Row],[Бюджет]])-1))),\"-\")","v":{"v":0,"d":"0.00%"}}]
[null,"Збут і маркетинг","Інші витрати (укажіть які)",{"$nulls":3},{"$f":"IFERROR(IF(Дохід_від_збуту=0,\"-\",Операційні_витрати[[#This Row],[Поточний період]]/Дохід_від_збуту),\"-\")","v":"-"},{"$f":"IFERROR(IF(Операційні_витрати[[#This Row],[Попередній період]]=Операційні_витрати[[#This Row],[Поточний період]],0,IF(Операційні_витрати[[#This Row],[Поточний період]]>Операційні_витрати[[#This Row],[Попередній період]],ABS((Операційні_витрати[[#This Row],[Поточний період]]/Операційні_витрати[[#This Row],[Попередній період]])-1),IF(AND(Операційні_витрати[[#This Row],[Поточний період]]<Операційні_витрати[[#This Row],[Попередній період]],Операційні_витрати[[#This Row],[Попередній період]]<0),-((Операційні_витрати[[#This Row],[Поточний період]]/Операційні_витрати[[#This Row],[Попередній період]])-1),(Операційні_витрати[[#This Row],[Поточний період]]/Операційні_витрати[[#This Row],[Попередній період]])-1))),\"-\")","v":{"v":0,"d":"0.00%"}},{"$f":"IFERROR(IF(Операційні_витрати[[#This Row],[Бюджет]]=Операційні_витрати[[#This Row],[Поточний період]],0,IF(Операційні_витрати[[#This Row],[Поточний період]]>Операційні_витрати[[#This Row],[Бюджет]],ABS((Операційні_витрати[[#This Row],[Поточний період]]/Операційні_витрати[[#This Row],[Бюджет]])-1),IF(AND(Операційні_витрати[[#This Row],[Поточний період]]<Операційні_витрати[[#This Row],[Бюджет]],Операційні_витрати[[#This Row],[Бюджет]]<0),-((Операційні_витрати[[#This Row],[Поточний період]]/Операційні_витрати[[#This Row],[Бюджет]])-1),(Операційні_витрати[[#This Row],[Поточний період]]/Операційні_витрати[[#This Row],[Бюджет]])-1))),\"-\")","v":{"v":0,"d":"0.00%"}}]
[null,"Збут і маркетинг","Інші витрати (укажіть які)",{"$nulls":3},{"$f":"IFERROR(IF(Дохід_від_збуту=0,\"-\",Операційні_витрати[[#This Row],[Поточний період]]/Дохід_від_збуту),\"-\")","v":"-"},{"$f":"IFERROR(IF(Операційні_витрати[[#This Row],[Попередній період]]=Операційні_витрати[[#This Row],[Поточний період]],0,IF(Операційні_витрати[[#This Row],[Поточний період]]>Операційні_витрати[[#This Row],[Попередній період]],ABS((Операційні_витрати[[#This Row],[Поточний період]]/Операційні_витрати[[#This Row],[Попередній період]])-1),IF(AND(Операційні_витрати[[#This Row],[Поточний період]]<Операційні_витрати[[#This Row],[Попередній період]],Операційні_витрати[[#This Row],[Попередній період]]<0),-((Операційні_витрати[[#This Row],[Поточний період]]/Операційні_витрати[[#This Row],[Попередній період]])-1),(Операційні_витрати[[#This Row],[Поточний період]]/Операційні_витрати[[#This Row],[Попередній період]])-1))),\"-\")","v":{"v":0,"d":"0.00%"}},{"$f":"IFERROR(IF(Операційні_витрати[[#This Row],[Бюджет]]=Операційні_витрати[[#This Row],[Поточний період]],0,IF(Операційні_витрати[[#This Row],[Поточний період]]>Операційні_витрати[[#This Row],[Бюджет]],ABS((Операційні_витрати[[#This Row],[Поточний період]]/Операційні_витрати[[#This Row],[Бюджет]])-1),IF(AND(Операційні_витрати[[#This Row],[Поточний період]]<Операційні_витрати[[#This Row],[Бюджет]],Операційні_витрати[[#This Row],[Бюджет]]<0),-((Операційні_витрати[[#This Row],[Поточний період]]/Операційні_витрати[[#This Row],[Бюджет]])-1),(Операційні_витрати[[#This Row],[Поточний період]]/Операційні_витрати[[#This Row],[Бюджет]])-1))),\"-\")","v":{"v":0,"d":"0.00%"}}]
[null,"Дослідження й розробка","Ліцензії на технології",{"$nulls":3},{"$f":"IFERROR(IF(Дохід_від_збуту=0,\"-\",Операційні_витрати[[#This Row],[Поточний період]]/Дохід_від_збуту),\"-\")","v":"-"},{"$f":"IFERROR(IF(Операційні_витрати[[#This Row],[Попередній період]]=Операційні_витрати[[#This Row],[Поточний період]],0,IF(Операційні_витрати[[#This Row],[Поточний період]]>Операційні_витрати[[#This Row],[Попередній період]],ABS((Операційні_витрати[[#This Row],[Поточний період]]/Операційні_витрати[[#This Row],[Попередній період]])-1),IF(AND(Операційні_витрати[[#This Row],[Поточний період]]<Операційні_витрати[[#This Row],[Попередній період]],Операційні_витрати[[#This Row],[Попередній період]]<0),-((Операційні_витрати[[#This Row],[Поточний період]]/Операційні_витрати[[#This Row],[Попередній період]])-1),(Операційні_витрати[[#This Row],[Поточний період]]/Операційні_витрати[[#This Row],[Попередній період]])-1))),\"-\")","v":{"v":0,"d":"0.00%"}},{"$f":"IFERROR(IF(Операційні_витрати[[#This Row],[Бюджет]]=Операційні_витрати[[#This Row],[Поточний період]],0,IF(Операційні_витрати[[#This Row],[Поточний період]]>Операційні_витрати[[#This Row],[Бюджет]],ABS((Операційні_витрати[[#This Row],[Поточний період]]/Операційні_витрати[[#This Row],[Бюджет]])-1),IF(AND(Операційні_витрати[[#This Row],[Поточний період]]<Операційні_витрати[[#This Row],[Бюджет]],Операційні_витрати[[#This Row],[Бюджет]]<0),-((Операційні_витрати[[#This Row],[Поточний період]]/Операційні_витрати[[#This Row],[Бюджет]])-1),(Операційні_витрати[[#This Row],[Поточний період]]/Операційні_витрати[[#This Row],[Бюджет]])-1))),\"-\")","v":{"v":0,"d":"0.00%"}}]
[null,"Дослідження й розробка","Патенти ",{"$nulls":3},{"$f":"IFERROR(IF(Дохід_від_збуту=0,\"-\",Операційні_витрати[[#This Row],[Поточний період]]/Дохід_від_збуту),\"-\")","v":"-"},{"$f":"IFERROR(IF(Операційні_витрати[[#This Row],[Попередній період]]=Операційні_витрати[[#This Row],[Поточний період]],0,IF(Операційні_витрати[[#This Row],[Поточний період]]>Операційні_витрати[[#This Row],[Попередній період]],ABS((Операційні_витрати[[#This Row],[Поточний період]]/Операційні_витрати[[#This Row],[Попередній період]])-1),IF(AND(Операційні_витрати[[#This Row],[Поточний період]]<Операційні_витрати[[#This Row],[Попередній період]],Операційні_витрати[[#This Row],[Попередній період]]<0),-((Операційні_витрати[[#This Row],[Поточний період]]/Операційні_витрати[[#This Row],[Попередній період]])-1),(Операційні_витрати[[#This Row],[Поточний період]]/Операційні_витрати[[#This Row],[Попередній період]])-1))),\"-\")","v":{"v":0,"d":"0.00%"}},{"$f":"IFERROR(IF(Операційні_витрати[[#This Row],[Бюджет]]=Операційні_витрати[[#This Row],[Поточний період]],0,IF(Операційні_витрати[[#This Row],[Поточний період]]>Операційні_витрати[[#This Row],[Бюджет]],ABS((Операційні_витрати[[#This Row],[Поточний період]]/Операційні_витрати[[#This Row],[Бюджет]])-1),IF(AND(Операційні_витрати[[#This Row],[Поточний період]]<Операційні_витрати[[#This Row],[Бюджет]],Операційні_витрати[[#This Row],[Бюджет]]<0),-((Операційні_витрати[[#This Row],[Поточний період]]/Операційні_витрати[[#This Row],[Бюджет]])-1),(Операційні_витрати[[#This Row],[Поточний період]]/Операційні_витрати[[#This Row],[Бюджет]])-1))),\"-\")","v":{"v":0,"d":"0.00%"}}]
[null,"Дослідження й розробка","Інші витрати (укажіть які)",{"$nulls":3},{"$f":"IFERROR(IF(Дохід_від_збуту=0,\"-\",Операційні_витрати[[#This Row],[Поточний період]]/Дохід_від_збуту),\"-\")","v":"-"},{"$f":"IFERROR(IF(Операційні_витрати[[#This Row],[Попередній період]]=Операційні_витрати[[#This Row],[Поточний період]],0,IF(Операційні_витрати[[#This Row],[Поточний період]]>Операційні_витрати[[#This Row],[Попередній період]],ABS((Операційні_витрати[[#This Row],[Поточний період]]/Операційні_витрати[[#This Row],[Попередній період]])-1),IF(AND(Операційні_витрати[[#This Row],[Поточний період]]<Операційні_витрати[[#This Row],[Попередній період]],Операційні_витрати[[#This Row],[Попередній період]]<0),-((Операційні_витрати[[#This Row],[Поточний період]]/Операційні_витрати[[#This Row],[Попередній період]])-1),(Операційні_витрати[[#This Row],[Поточний період]]/Операційні_витрати[[#This Row],[Попередній період]])-1))),\"-\")","v":{"v":0,"d":"0.00%"}},{"$f":"IFERROR(IF(Операційні_витрати[[#This Row],[Бюджет]]=Операційні_витрати[[#This Row],[Поточний період]],0,IF(Операційні_витрати[[#This Row],[Поточний період]]>Операційні_витрати[[#This Row],[Бюджет]],ABS((Операційні_витрати[[#This Row],[Поточний період]]/Операційні_витрати[[#This Row],[Бюджет]])-1),IF(AND(Операційні_витрати[[#This Row],[Поточний період]]<Операційні_витрати[[#This Row],[Бюджет]],Операційні_витрати[[#This Row],[Бюджет]]<0),-((Операційні_витрати[[#This Row],[Поточний період]]/Операційні_витрати[[#This Row],[Бюджет]])-1),(Операційні_витрати[[#This Row],[Поточний період]]/Операційні_витрати[[#This Row],[Бюджет]])-1))),\"-\")","v":{"v":0,"d":"0.00%"}}]
[null,"Дослідження й розробка","Інші витрати (укажіть які)",{"$nulls":3},{"$f":"IFERROR(IF(Дохід_від_збуту=0,\"-\",Операційні_витрати[[#This Row],[Поточний період]]/Дохід_від_збуту),\"-\")","v":"-"},{"$f":"IFERROR(IF(Операційні_витрати[[#This Row],[Попередній період]]=Операційні_витрати[[#This Row],[Поточний період]],0,IF(Операційні_витрати[[#This Row],[Поточний період]]>Операційні_витрати[[#This Row],[Попередній період]],ABS((Операційні_витрати[[#This Row],[Поточний період]]/Операційні_витрати[[#This Row],[Попередній період]])-1),IF(AND(Операційні_витрати[[#This Row],[Поточний період]]<Операційні_витрати[[#This Row],[Попередній період]],Операційні_витрати[[#This Row],[Попередній період]]<0),-((Операційні_витрати[[#This Row],[Поточний період]]/Операційні_витрати[[#This Row],[Попередній період]])-1),(Операційні_витрати[[#This Row],[Поточний період]]/Операційні_витрати[[#This Row],[Попередній період]])-1))),\"-\")","v":{"v":0,"d":"0.00%"}},{"$f":"IFERROR(IF(Операційні_витрати[[#This Row],[Бюджет]]=Операційні_витрати[[#This Row],[Поточний період]],0,IF(Операційні_витрати[[#This Row],[Поточний період]]>Операційні_витрати[[#This Row],[Бюджет]],ABS((Операційні_витрати[[#This Row],[Поточний період]]/Операційні_витрати[[#This Row],[Бюджет]])-1),IF(AND(Операційні_витрати[[#This Row],[Поточний період]]<Операційні_витрати[[#This Row],[Бюджет]],Операційні_витрати[[#This Row],[Бюджет]]<0),-((Операційні_витрати[[#This Row],[Поточний період]]/Операційні_витрати[[#This Row],[Бюджет]])-1),(Операційні_витрати[[#This Row],[Поточний період]]/Операційні_витрати[[#This Row],[Бюджет]])-1))),\"-\")","v":{"v":0,"d":"0.00%"}}]
[null,"Загальні й адміністративні","Заробітні плати й гонорари",{"$nulls":3},{"$f":"IFERROR(IF(Дохід_від_збуту=0,\"-\",Операційні_витрати[[#This Row],[Поточний період]]/Дохід_від_збуту),\"-\")","v":"-"},{"$f":"IFERROR(IF(Операційні_витрати[[#This Row],[Попередній період]]=Операційні_витрати[[#This Row],[Поточний період]],0,IF(Операційні_витрати[[#This Row],[Поточний період]]>Операційні_витрати[[#This Row],[Попередній період]],ABS((Операційні_витрати[[#This Row],[Поточний період]]/Операційні_витрати[[#This Row],[Попередній період]])-1),IF(AND(Операційні_витрати[[#This Row],[Поточний період]]<Операційні_витрати[[#This Row],[Попередній період]],Операційні_витрати[[#This Row],[Попередній період]]<0),-((Операційні_витрати[[#This Row],[Поточний період]]/Операційні_витрати[[#This Row],[Попередній період]])-1),(Операційні_витрати[[#This Row],[Поточний період]]/Операційні_витрати[[#This Row],[Попередній період]])-1))),\"-\")","v":{"v":0,"d":"0.00%"}},{"$f":"IFERROR(IF(Операційні_витрати[[#This Row],[Бюджет]]=Операційні_витрати[[#This Row],[Поточний період]],0,IF(Операційні_витрати[[#This Row],[Поточний період]]>Операційні_витрати[[#This Row],[Бюджет]],ABS((Операційні_витрати[[#This Row],[Поточний період]]/Операційні_витрати[[#This Row],[Бюджет]])-1),IF(AND(Операційні_витрати[[#This Row],[Поточний період]]<Операційні_витрати[[#This Row],[Бюджет]],Операційні_витрати[[#This Row],[Бюджет]]<0),-((Операційні_витрати[[#This Row],[Поточний період]]/Операційні_витрати[[#This Row],[Бюджет]])-1),(Операційні_витрати[[#This Row],[Поточний період]]/Операційні_витрати[[#This Row],[Бюджет]])-1))),\"-\")","v":{"v":0,"d":"0.00%"}}]
[null,"Загальні й адміністративні","Сторонні послуги",{"$nulls":3},{"$f":"IFERROR(IF(Дохід_від_збуту=0,\"-\",Операційні_витрати[[#This Row],[Поточний період]]/Дохід_від_збуту),\"-\")","v":"-"},{"$f":"IFERROR(IF(Операційні_витрати[[#This Row],[Попередній період]]=Операційні_витрати[[#This Row],[Поточний період]],0,IF(Операційні_витрати[[#This Row],[Поточний період]]>Операційні_витрати[[#This Row],[Попередній період]],ABS((Операційні_витрати[[#This Row],[Поточний період]]/Операційні_витрати[[#This Row],[Попередній період]])-1),IF(AND(Операційні_витрати[[#This Row],[Поточний період]]<Операційні_витрати[[#This Row],[Попередній період]],Операційні_витрати[[#This Row],[Попередній період]]<0),-((Операційні_витрати[[#This Row],[Поточний період]]/Операційні_витрати[[#This Row],[Попередній період]])-1),(Операційні_витрати[[#This Row],[Поточний період]]/Операційні_витрати[[#This Row],[Попередній період]])-1))),\"-\")","v":{"v":0,"d":"0.00%"}},{"$f":"IFERROR(IF(Операційні_витрати[[#This Row],[Бюджет]]=Операційні_витрати[[#This Row],[Поточний період]],0,IF(Операційні_витрати[[#This Row],[Поточний період]]>Операційні_витрати[[#This Row],[Бюджет]],ABS((Операційні_витрати[[#This Row],[Поточний період]]/Операційні_витрати[[#This Row],[Бюджет]])-1),IF(AND(Операційні_витрати[[#This Row],[Поточний період]]<Операційні_витрати[[#This Row],[Бюджет]],Операційні_витрати[[#This Row],[Бюджет]]<0),-((Операційні_витрати[[#This Row],[Поточний період]]/Операційні_витрати[[#This Row],[Бюджет]])-1),(Операційні_витрати[[#This Row],[Поточний період]]/Операційні_витрати[[#This Row],[Бюджет]])-1))),\"-\")","v":{"v":0,"d":"0.00%"}}]
[null,"Загальні й адміністративні","Витратні матеріали",{"$nulls":3},{"$f":"IFERROR(IF(Дохід_від_збуту=0,\"-\",Операційні_витрати[[#This Row],[Поточний період]]/Дохід_від_збуту),\"-\")","v":"-"},{"$f":"IFERROR(IF(Операційні_витрати[[#This Row],[Попередній період]]=Операційні_витрати[[#This Row],[Поточний період]],0,IF(Операційні_витрати[[#This Row],[Поточний період]]>Операційні_витрати[[#This Row],[Попередній період]],ABS((Операційні_витрати[[#This Row],[Поточний період]]/Операційні_витрати[[#This Row],[Попередній період]])-1),IF(AND(Операційні_витрати[[#This Row],[Поточний період]]<Операційні_витрати[[#This Row],[Попередній період]],Операційні_витрати[[#This Row],[Попередній період]]<0),-((Операційні_витрати[[#This Row],[Поточний період]]/Операційні_витрати[[#This Row],[Попередній період]])-1),(Операційні_витрати[[#This Row],[Поточний період]]/Операційні_витрати[[#This Row],[Попередній період]])-1))),\"-\")","v":{"v":0,"d":"0.00%"}},{"$f":"IFERROR(IF(Операційні_витрати[[#This Row],[Бюджет]]=Операційні_витрати[[#This Row],[Поточний період]],0,IF(Операційні_витрати[[#This Row],[Поточний період]]>Операційні_витрати[[#This Row],[Бюджет]],ABS((Операційні_витрати[[#This Row],[Поточний період]]/Операційні_витрати[[#This Row],[Бюджет]])-1),IF(AND(Операційні_витрати[[#This Row],[Поточний період]]<Операційні_витрати[[#This Row],[Бюджет]],Операційні_витрати[[#This Row],[Бюджет]]<0),-((Операційні_витрати[[#This Row],[Поточний період]]/Операційні_витрати[[#This Row],[Бюджет]])-1),(Операційні_витрати[[#This Row],[Поточний період]]/Операційні_витрати[[#This Row],[Бюджет]])-1))),\"-\")","v":{"v":0,"d":"0.00%"}}]
[null,"Загальні й адміністративні","Харчування та розваги",{"$nulls":3},{"$f":"IFERROR(IF(Дохід_від_збуту=0,\"-\",Операційні_витрати[[#This Row],[Поточний період]]/Дохід_від_збуту),\"-\")","v":"-"},{"$f":"IFERROR(IF(Операційні_витрати[[#This Row],[Попередній період]]=Операційні_витрати[[#This Row],[Поточний період]],0,IF(Операційні_витрати[[#This Row],[Поточний період]]>Операційні_витрати[[#This Row],[Попередній період]],ABS((Операційні_витрати[[#This Row],[Поточний період]]/Операційні_витрати[[#This Row],[Попередній період]])-1),IF(AND(Операційні_витрати[[#This Row],[Поточний період]]<Операційні_витрати[[#This Row],[Попередній період]],Операційні_витрати[[#This Row],[Попередній період]]<0),-((Операційні_витрати[[#This Row],[Поточний період]]/Операційні_витрати[[#This Row],[Попередній період]])-1),(Операційні_витрати[[#This Row],[Поточний період]]/Операційні_витрати[[#This Row],[Попередній період]])-1))),\"-\")","v":{"v":0,"d":"0.00%"}},{"$f":"IFERROR(IF(Операційні_витрати[[#This Row],[Бюджет]]=Операційні_витрати[[#This Row],[Поточний період]],0,IF(Операційні_витрати[[#This Row],[Поточний період]]>Операційні_витрати[[#This Row],[Бюджет]],ABS((Операційні_витрати[[#This Row],[Поточний період]]/Операційні_витрати[[#This Row],[Бюджет]])-1),IF(AND(Операційні_витрати[[#This Row],[Поточний період]]<Операційні_витрати[[#This Row],[Бюджет]],Операційні_витрати[[#This Row],[Бюджет]]<0),-((Операційні_витрати[[#This Row],[Поточний період]]/Операційні_витрати[[#This Row],[Бюджет]])-1),(Операційні_витрати[[#This Row],[Поточний період]]/Операційні_витрати[[#This Row],[Бюджет]])-1))),\"-\")","v":{"v":0,"d":"0.00%"}}]
[null,"Загальні й адміністративні","Оренда",{"$nulls":3},{"$f":"IFERROR(IF(Дохід_від_збуту=0,\"-\",Операційні_витрати[[#This Row],[Поточний період]]/Дохід_від_збуту),\"-\")","v":"-"},{"$f":"IFERROR(IF(Операційні_витрати[[#This Row],[Попередній період]]=Операційні_витрати[[#This Row],[Поточний період]],0,IF(Операційні_витрати[[#This Row],[Поточний період]]>Операційні_витрати[[#This Row],[Попередній період]],ABS((Операційні_витрати[[#This Row],[Поточний період]]/Операційні_витрати[[#This Row],[Попередній період]])-1),IF(AND(Операційні_витрати[[#This Row],[Поточний період]]<Операційні_витрати[[#This Row],[Попередній період]],Операційні_витрати[[#This Row],[Попередній період]]<0),-((Операційні_витрати[[#This Row],[Поточний період]]/Операційні_витрати[[#This Row],[Попередній період]])-1),(Операційні_витрати[[#This Row],[Поточний період]]/Операційні_витрати[[#This Row],[Попередній період]])-1))),\"-\")","v":{"v":0,"d":"0.00%"}},{"$f":"IFERROR(IF(Операційні_витрати[[#This Row],[Бюджет]]=Операційні_витрати[[#This Row],[Поточний період]],0,IF(Операційні_витрати[[#This Row],[Поточний період]]>Операційні_витрати[[#This Row],[Бюджет]],ABS((Операційні_витрати[[#This Row],[Поточний період]]/Операційні_витрати[[#This Row],[Бюджет]])-1),IF(AND(Операційні_витрати[[#This Row],[Поточний період]]<Операційні_витрати[[#This Row],[Бюджет]],Операційні_витрати[[#This Row],[Бюджет]]<0),-((Операційні_витрати[[#This Row],[Поточний період]]/Операційні_витрати[[#This Row],[Бюджет]])-1),(Операційні_витрати[[#This Row],[Поточний період]]/Операційні_витрати[[#This Row],[Бюджет]])-1))),\"-\")","v":{"v":0,"d":"0.00%"}}]
[null,"Загальні й адміністративні","Телефон",{"$nulls":3},{"$f":"IFERROR(IF(Дохід_від_збуту=0,\"-\",Операційні_витрати[[#This Row],[Поточний період]]/Дохід_від_збуту),\"-\")","v":"-"},{"$f":"IFERROR(IF(Операційні_витрати[[#This Row],[Попередній період]]=Операційні_витрати[[#This Row],[Поточний період]],0,IF(Операційні_витрати[[#This Row],[Поточний період]]>Операційні_витрати[[#This Row],[Попередній період]],ABS((Операційні_витрати[[#This Row],[Поточний період]]/Операційні_витрати[[#This Row],[Попередній період]])-1),IF(AND(Операційні_витрати[[#This Row],[Поточний період]]<Операційні_витрати[[#This Row],[Попередній період]],Операційні_витрати[[#This Row],[Попередній період]]<0),-((Операційні_витрати[[#This Row],[Поточний період]]/Операційні_витрати[[#This Row],[Попередній період]])-1),(Операційні_витрати[[#This Row],[Поточний період]]/Операційні_витрати[[#This Row],[Попередній період]])-1))),\"-\")","v":{"v":0,"d":"0.00%"}},{"$f":"IFERROR(IF(Операційні_витрати[[#This Row],[Бюджет]]=Операційні_витрати[[#This Row],[Поточний період]],0,IF(Операційні_витрати[[#This Row],[Поточний період]]>Операційні_витрати[[#This Row],[Бюджет]],ABS((Операційні_витрати[[#This Row],[Поточний період]]/Операційні_витрати[[#This Row],[Бюджет]])-1),IF(AND(Операційні_витрати[[#This Row],[Поточний період]]<Операційні_витрати[[#This Row],[Бюджет]],Операційні_витрати[[#This Row],[Бюджет]]<0),-((Операційні_витрати[[#This Row],[Поточний період]]/Операційні_витрати[[#This Row],[Бюджет]])-1),(Операційні_витрати[[#This Row],[Поточний період]]/Операційні_витрати[[#This Row],[Бюджет]])-1))),\"-\")","v":{"v":0,"d":"0.00%"}}]
[null,"Загальні й адміністративні","Комунальні послуги",{"$nulls":3},{"$f":"IFERROR(IF(Дохід_від_збуту=0,\"-\",Операційні_витрати[[#This Row],[Поточний період]]/Дохід_від_збуту),\"-\")","v":"-"},{"$f":"IFERROR(IF(Операційні_витрати[[#This Row],[Попередній період]]=Операційні_витрати[[#This Row],[Поточний період]],0,IF(Операційні_витрати[[#This Row],[Поточний період]]>Операційні_витрати[[#This Row],[Попередній період]],ABS((Операційні_витрати[[#This Row],[Поточний період]]/Операційні_витрати[[#This Row],[Попередній період]])-1),IF(AND(Операційні_витрати[[#This Row],[Поточний період]]<Операційні_витрати[[#This Row],[Попередній період]],Операційні_витрати[[#This Row],[Попередній період]]<0),-((Операційні_витрати[[#This Row],[Поточний період]]/Операційні_витрати[[#This Row],[Попередній період]])-1),(Операційні_витрати[[#This Row],[Поточний період]]/Операційні_витрати[[#This Row],[Попередній період]])-1))),\"-\")","v":{"v":0,"d":"0.00%"}},{"$f":"IFERROR(IF(Операційні_витрати[[#This Row],[Бюджет]]=Операційні_витрати[[#This Row],[Поточний період]],0,IF(Операційні_витрати[[#This Row],[Поточний період]]>Операційні_витрати[[#This Row],[Бюджет]],ABS((Операційні_витрати[[#This Row],[Поточний період]]/Операційні_витрати[[#This Row],[Бюджет]])-1),IF(AND(Операційні_витрати[[#This Row],[Поточний період]]<Операційні_витрати[[#This Row],[Бюджет]],Операційні_витрати[[#This Row],[Бюджет]]<0),-((Операційні_витрати[[#This Row],[Поточний період]]/Операційні_витрати[[#This Row],[Бюджет]])-1),(Операційні_витрати[[#This Row],[Поточний період]]/Операційні_витрати[[#This Row],[Бюджет]])-1))),\"-\")","v":{"v":0,"d":"0.00%"}}]
[null,"Загальні й адміністративні","Амортизація",{"$nulls":3},{"$f":"IFERROR(IF(Дохід_від_збуту=0,\"-\",Операційні_витрати[[#This Row],[Поточний період]]/Дохід_від_збуту),\"-\")","v":"-"},{"$f":"IFERROR(IF(Операційні_витрати[[#This Row],[Попередній період]]=Операційні_витрати[[#This Row],[Поточний період]],0,IF(Операційні_витрати[[#This Row],[Поточний період]]>Операційні_витрати[[#This Row],[Попередній період]],ABS((Операційні_витрати[[#This Row],[Поточний період]]/Операційні_витрати[[#This Row],[Попередній період]])-1),IF(AND(Операційні_витрати[[#This Row],[Поточний період]]<Операційні_витрати[[#This Row],[Попередній період]],Операційні_витрати[[#This Row],[Попередній період]]<0),-((Операційні_витрати[[#This Row],[Поточний період]]/Операційні_витрати[[#This Row],[Попередній період]])-1),(Операційні_витрати[[#This Row],[Поточний період]]/Операційні_витрати[[#This Row],[Попередній період]])-1))),\"-\")","v":{"v":0,"d":"0.00%"}},{"$f":"IFERROR(IF(Операційні_витрати[[#This Row],[Бюджет]]=Операційні_витрати[[#This Row],[Поточний період]],0,IF(Операційні_витрати[[#This Row],[Поточний період]]>Операційні_витрати[[#This Row],[Бюджет]],ABS((Операційні_витрати[[#This Row],[Поточний період]]/Операційні_витрати[[#This Row],[Бюджет]])-1),IF(AND(Операційні_витрати[[#This Row],[Поточний період]]<Операційні_витрати[[#This Row],[Бюджет]],Операційні_витрати[[#This Row],[Бюджет]]<0),-((Операційні_витрати[[#This Row],[Поточний період]]/Операційні_витрати[[#This Row],[Бюджет]])-1),(Операційні_витрати[[#This Row],[Поточний період]]/Операційні_витрати[[#This Row],[Бюджет]])-1))),\"-\")","v":{"v":0,"d":"0.00%"}}]
[null,"Загальні й адміністративні","Страхування",{"$nulls":3},{"$f":"IFERROR(IF(Дохід_від_збуту=0,\"-\",Операційні_витрати[[#This Row],[Поточний період]]/Дохід_від_збуту),\"-\")","v":"-"},{"$f":"IFERROR(IF(Операційні_витрати[[#This Row],[Попередній період]]=Операційні_витрати[[#This Row],[Поточний період]],0,IF(Операційні_витрати[[#This Row],[Поточний період]]>Операційні_витрати[[#This Row],[Попередній період]],ABS((Операційні_витрати[[#This Row],[Поточний період]]/Операційні_витрати[[#This Row],[Попередній період]])-1),IF(AND(Операційні_витрати[[#This Row],[Поточний період]]<Операційні_витрати[[#This Row],[Попередній період]],Операційні_витрати[[#This Row],[Попередній період]]<0),-((Операційні_витрати[[#This Row],[Поточний період]]/Операційні_витрати[[#This Row],[Попередній період]])-1),(Операційні_витрати[[#This Row],[Поточний період]]/Операційні_витрати[[#This Row],[Попередній період]])-1))),\"-\")","v":{"v":0,"d":"0.00%"}},{"$f":"IFERROR(IF(Операційні_витрати[[#This Row],[Бюджет]]=Операційні_витрати[[#This Row],[Поточний період]],0,IF(Операційні_витрати[[#This Row],[Поточний період]]>Операційні_витрати[[#This Row],[Бюджет]],ABS((Операційні_витрати[[#This Row],[Поточний період]]/Операційні_витрати[[#This Row],[Бюджет]])-1),IF(AND(Операційні_витрати[[#This Row],[Поточний період]]<Операційні_витрати[[#This Row],[Бюджет]],Операційні_витрати[[#This Row],[Бюджет]]<0),-((Операційні_витрати[[#This Row],[Поточний період]]/Операційні_витрати[[#This Row],[Бюджет]])-1),(Операційні_витрати[[#This Row],[Поточний період]]/Операційні_витрати[[#This Row],[Бюджет]])-1))),\"-\")","v":{"v":0,"d":"0.00%"}}]
[null,"Загальні й адміністративні","Ремонт і обслуговування",{"$nulls":3},{"$f":"IFERROR(IF(Дохід_від_збуту=0,\"-\",Операційні_витрати[[#This Row],[Поточний період]]/Дохід_від_збуту),\"-\")","v":"-"},{"$f":"IFERROR(IF(Операційні_витрати[[#This Row],[Попередній період]]=Операційні_витрати[[#This Row],[Поточний період]],0,IF(Операційні_витрати[[#This Row],[Поточний період]]>Операційні_витрати[[#This Row],[Попередній період]],ABS((Операційні_витрати[[#This Row],[Поточний період]]/Операційні_витрати[[#This Row],[Попередній період]])-1),IF(AND(Операційні_витрати[[#This Row],[Поточний період]]<Операційні_витрати[[#This Row],[Попередній період]],Операційні_витрати[[#This Row],[Попередній період]]<0),-((Операційні_витрати[[#This Row],[Поточний період]]/Операційні_витрати[[#This Row],[Попередній період]])-1),(Операційні_витрати[[#This Row],[Поточний період]]/Операційні_витрати[[#This Row],[Попередній період]])-1))),\"-\")","v":{"v":0,"d":"0.00%"}},{"$f":"IFERROR(IF(Операційні_витрати[[#This Row],[Бюджет]]=Операційні_витрати[[#This Row],[Поточний період]],0,IF(Операційні_витрати[[#This Row],[Поточний період]]>Операційні_витрати[[#This Row],[Бюджет]],ABS((Операційні_витрати[[#This Row],[Поточний період]]/Операційні_витрати[[#This Row],[Бюджет]])-1),IF(AND(Операційні_витрати[[#This Row],[Поточний період]]<Операційні_витрати[[#This Row],[Бюджет]],Операційні_витрати[[#This Row],[Бюджет]]<0),-((Операційні_витрати[[#This Row],[Поточний період]]/Операційні_витрати[[#This Row],[Бюджет]])-1),(Операційні_витрати[[#This Row],[Поточний період]]/Операційні_витрати[[#This Row],[Бюджет]])-1))),\"-\")","v":{"v":0,"d":"0.00%"}}]
[null,"Загальні й адміністративні","Інші витрати (укажіть які)",{"$nulls":3},{"$f":"IFERROR(IF(Дохід_від_збуту=0,\"-\",Операційні_витрати[[#This Row],[Поточний період]]/Дохід_від_збуту),\"-\")","v":"-"},{"$f":"IFERROR(IF(Операційні_витрати[[#This Row],[Попередній період]]=Операційні_витрати[[#This Row],[Поточний період]],0,IF(Операційні_витрати[[#This Row],[Поточний період]]>Операційні_витрати[[#This Row],[Попередній період]],ABS((Операційні_витрати[[#This Row],[Поточний період]]/Операційні_витрати[[#This Row],[Попередній період]])-1),IF(AND(Операційні_витрати[[#This Row],[Поточний період]]<Операційні_витрати[[#This Row],[Попередній період]],Операційні_витрати[[#This Row],[Попередній період]]<0),-((Операційні_витрати[[#This Row],[Поточний період]]/Операційні_витрати[[#This Row],[Попередній період]])-1),(Операційні_витрати[[#This Row],[Поточний період]]/Операційні_витрати[[#This Row],[Попередній період]])-1))),\"-\")","v":{"v":0,"d":"0.00%"}},{"$f":"IFERROR(IF(Операційні_витрати[[#This Row],[Бюджет]]=Операційні_витрати[[#This Row],[Поточний період]],0,IF(Операційні_витрати[[#This Row],[Поточний період]]>Операційні_витрати[[#This Row],[Бюджет]],ABS((Операційні_витрати[[#This Row],[Поточний період]]/Операційні_витрати[[#This Row],[Бюджет]])-1),IF(AND(Операційні_витрати[[#This Row],[Поточний період]]<Операційні_витрати[[#This Row],[Бюджет]],Операційні_витрати[[#This Row],[Бюджет]]<0),-((Операційні_витрати[[#This Row],[Поточний період]]/Операційні_витрати[[#This Row],[Бюджет]])-1),(Операційні_витрати[[#This Row],[Поточний період]]/Операційні_витрати[[#This Row],[Бюджет]])-1))),\"-\")","v":{"v":0,"d":"0.00%"}}]
[null,"Загальні й адміністративні","Інші витрати (укажіть які)",{"$nulls":3},{"$f":"IFERROR(IF(Дохід_від_збуту=0,\"-\",Операційні_витрати[[#This Row],[Поточний період]]/Дохід_від_збуту),\"-\")","v":"-"},{"$f":"IFERROR(IF(Операційні_витрати[[#This Row],[Попередній період]]=Операційні_витрати[[#This Row],[Поточний період]],0,IF(Операційні_витрати[[#This Row],[Поточний період]]>Операційні_витрати[[#This Row],[Попередній період]],ABS((Операційні_витрати[[#This Row],[Поточний період]]/Операційні_витрати[[#This Row],[Попередній період]])-1),IF(AND(Операційні_витрати[[#This Row],[Поточний період]]<Операційні_витрати[[#This Row],[Попередній період]],Операційні_витрати[[#This Row],[Попередній період]]<0),-((Операційні_витрати[[#This Row],[Поточний період]]/Операційні_витрати[[#This Row],[Попередній період]])-1),(Операційні_витрати[[#This Row],[Поточний період]]/Операційні_витрати[[#This Row],[Попередній період]])-1))),\"-\")","v":{"v":0,"d":"0.00%"}},{"$f":"IFERROR(IF(Операційні_витрати[[#This Row],[Бюджет]]=Операційні_витрати[[#This Row],[Поточний період]],0,IF(Операційні_витрати[[#This Row],[Поточний період]]>Операційні_витрати[[#This Row],[Бюджет]],ABS((Операційні_витрати[[#This Row],[Поточний період]]/Операційні_витрати[[#This Row],[Бюджет]])-1),IF(AND(Операційні_витрати[[#This Row],[Поточний період]]<Операційні_витрати[[#This Row],[Бюджет]],Операційні_витрати[[#This Row],[Бюджет]]<0),-((Операційні_витрати[[#This Row],[Поточний період]]/Операційні_витрати[[#This Row],[Бюджет]])-1),(Операційні_витрати[[#This Row],[Поточний період]]/Операційні_витрати[[#This Row],[Бюджет]])-1))),\"-\")","v":{"v":0,"d":"0.00%"}}]
[null,"Загальна сума операційних витрат",null,{"$f":"SUBTOTAL(109,Операційні_витрати[Попередній період])","v":0},{"$f":"SUBTOTAL(109,Операційні_витрати[Бюджет])","v":0},{"$f":"SUBTOTAL(109,Операційні_витрати[Поточний період])","v":0},{"$f":"SUBTOTAL(109,Операційні_витрати[Поточний період як відсоток від збуту])","v":{"v":0,"d":"0.00%"}},{"$f":"SUBTOTAL(109,Операційні_витрати[Відсоток відхилення від попереднього періоду])","v":{"v":0,"d":"0.00%"}},{"$f":"SUBTOTAL(109,Операційні_витрати[Відсоток відхилення від бюджету])","v":{"v":0,"d":"0.00%"}}]

{"sheet":"Податки","index":4,"n_rows":10,"n_cols":9,"rows_kept":10,"merged":[[0,7,2,8]]}
[null,{"$f":"Заголовок_книги","v":"Звіт про доходи та збитки"}]
[null,{"$f":"Назва_компанії","v":"Назва компанії"},"Виражено в тисячах"]
[null,"Податки",{"$f":"IFERROR(Податки[[#Totals],[Поточний період]],\"-\")","v":0}]
[null,"Тип","Опис","Попередній період","Бюджет","Поточний період","Поточний період як відсоток від збуту","Відсоток відхилення від попереднього періоду","Відсоток відхилення від бюджету"]
[null,"Податки","Податки на прибуток",{"$nulls":3},{"$f":"IFERROR(IF(Дохід_від_збуту=0,\"-\",Податки[[#This Row],[Поточний період]]/Дохід_від_збуту),\"-\")","v":"-"},{"$f":"IFERROR(IF(Податки[[#This Row],[Попередній період]]=Податки[[#This Row],[Поточний період]],0,IF(Податки[[#This Row],[Поточний період]]>Податки[[#This Row],[Попередній період]],ABS((Податки[[#This Row],[Поточний період]]/Податки[[#This Row],[Попередній період]])-1),IF(AND(Податки[[#This Row],[Поточний період]]<Податки[[#This Row],[Попередній період]],Податки[[#This Row],[Попередній період]]<0),-((Податки[[#This Row],[Поточний період]]/Податки[[#This Row],[Попередній період]])-1),(Податки[[#This Row],[Поточний період]]/Податки[[#This Row],[Попередній період]])-1))),\"-\")","v":{"v":0,"d":"0.00%"}},{"$f":"IFERROR(IF(Податки[[#This Row],[Бюджет]]=Податки[[#This Row],[Поточний період]],0,IF(Податки[[#This Row],[Поточний період]]>Податки[[#This Row],[Бюджет]],ABS((Податки[[#This Row],[Поточний період]]/Податки[[#This Row],[Бюджет]])-1),IF(AND(Податки[[#This Row],[Поточний період]]<Податки[[#This Row],[Бюджет]],Податки[[#This Row],[Бюджет]]<0),-((Податки[[#This Row],[Поточний період]]/Податки[[#This Row],[Бюджет]])-1),(Податки[[#This Row],[Поточний період]]/Податки[[#This Row],[Бюджет]])-1))),\"-\")","v":{"v":0,"d":"0.00%"}}]
[null,"Податки","Податки на зарплату",{"$nulls":3},{"$f":"IFERROR(IF(Дохід_від_збуту=0,\"-\",Податки[[#This Row],[Поточний період]]/Дохід_від_збуту),\"-\")","v":"-"},{"$f":"IFERROR(IF(Податки[[#This Row],[Попередній період]]=Податки[[#This Row],[Поточний період]],0,IF(Податки[[#This Row],[Поточний період]]>Податки[[#This Row],[Попередній період]],ABS((Податки[[#This Row],[Поточний період]]/Податки[[#This Row],[Попередній період]])-1),IF(AND(Податки[[#This Row],[Поточний період]]<Податки[[#This Row],[Попередній період]],Податки[[#This Row],[Попередній період]]<0),-((Податки[[#This Row],[Поточний період]]/Податки[[#This Row],[Попередній період]])-1),(Податки[[#This Row],[Поточний період]]/Податки[[#This Row],[Попередній період]])-1))),\"-\")","v":{"v":0,"d":"0.00%"}},{"$f":"IFERROR(IF(Податки[[#This Row],[Бюджет]]=Податки[[#This Row],[Поточний період]],0,IF(Податки[[#This Row],[Поточний період]]>Податки[[#This Row],[Бюджет]],ABS((Податки[[#This Row],[Поточний період]]/Податки[[#This Row],[Бюджет]])-1),IF(AND(Податки[[#This Row],[Поточний період]]<Податки[[#This Row],[Бюджет]],Податки[[#This Row],[Бюджет]]<0),-((Податки[[#This Row],[Поточний період]]/Податки[[#This Row],[Бюджет]])-1),(Податки[[#This Row],[Поточний період]]/Податки[[#This Row],[Бюджет]])-1))),\"-\")","v":{"v":0,"d":"0.00%"}}]
[null,"Податки","Податки на нерухомість",{"$nulls":3},{"$f":"IFERROR(IF(Дохід_від_збуту=0,\"-\",Податки[[#This Row],[Поточний період]]/Дохід_від_збуту),\"-\")","v":"-"},{"$f":"IFERROR(IF(Податки[[#This Row],[Попередній період]]=Податки[[#This Row],[Поточний період]],0,IF(Податки[[#This Row],[Поточний період]]>Податки[[#This Row],[Попередній період]],ABS((Податки[[#This Row],[Поточний період]]/Податки[[#This Row],[Попередній період]])-1),IF(AND(Податки[[#This Row],[Поточний період]]<Податки[[#This Row],[Попередній період]],Податки[[#This Row],[Попередній період]]<0),-((Податки[[#This Row],[Поточний період]]/Податки[[#This Row],[Попередній період]])-1),(Податки[[#This Row],[Поточний період]]/Податки[[#This Row],[Попередній період]])-1))),\"-\")","v":{"v":0,"d":"0.00%"}},{"$f":"IFERROR(IF(Податки[[#This Row],[Бюджет]]=Податки[[#This Row],[Поточний період]],0,IF(Податки[[#This Row],[Поточний період]]>Податки[[#This Row],[Бюджет]],ABS((Податки[[#This Row],[Поточний період]]/Податки[[#This Row],[Бюджет]])-1),IF(AND(Податки[[#This Row],[Поточний період]]<Податки[[#This Row],[Бюджет]],Податки[[#This Row],[Бюджет]]<0),-((Податки[[#This Row],[Поточний період]]/Податки[[#This Row],[Бюджет]])-1),(Податки[[#This Row],[Поточний період]]/Податки[[#This Row],[Бюджет]])-1))),\"-\")","v":{"v":0,"d":"0.00%"}}]
[null,"Податки","Інші податки (укажіть які)",{"$nulls":3},{"$f":"IFERROR(IF(Дохід_від_збуту=0,\"-\",Податки[[#This Row],[Поточний період]]/Дохід_від_збуту),\"-\")","v":"-"},{"$f":"IFERROR(IF(Податки[[#This Row],[Попередній період]]=Податки[[#This Row],[Поточний період]],0,IF(Податки[[#This Row],[Поточний період]]>Податки[[#This Row],[Попередній період]],ABS((Податки[[#This Row],[Поточний період]]/Податки[[#This Row],[Попередній період]])-1),IF(AND(Податки[[#This Row],[Поточний період]]<Податки[[#This Row],[Попередній період]],Податки[[#This Row],[Попередній період]]<0),-((Податки[[#This Row],[Поточний період]]/Податки[[#This Row],[Попередній період]])-1),(Податки[[#This Row],[Поточний період]]/Податки[[#This Row],[Попередній період]])-1))),\"-\")","v":{"v":0,"d":"0.00%"}},{"$f":"IFERROR(IF(Податки[[#This Row],[Бюджет]]=Податки[[#This Row],[Поточний період]],0,IF(Податки[[#This Row],[Поточний період]]>Податки[[#This Row],[Бюджет]],ABS((Податки[[#This Row],[Поточний період]]/Податки[[#This Row],[Бюджет]])-1),IF(AND(Податки[[#This Row],[Поточний період]]<Податки[[#This Row],[Бюджет]],Податки[[#This Row],[Бюджет]]<0),-((Податки[[#This Row],[Поточний період]]/Податки[[#This Row],[Бюджет]])-1),(Податки[[#This Row],[Поточний період]]/Податки[[#This Row],[Бюджет]])-1))),\"-\")","v":{"v":0,"d":"0.00%"}}]
[null,"Податки","Інші податки (укажіть які)",{"$nulls":3},{"$f":"IFERROR(IF(Дохід_від_збуту=0,\"-\",Податки[[#This Row],[Поточний період]]/Дохід_від_збуту),\"-\")","v":"-"},{"$f":"IFERROR(IF(Податки[[#This Row],[Попередній період]]=Податки[[#This Row],[Поточний період]],0,IF(Податки[[#This Row],[Поточний період]]>Податки[[#This Row],[Попередній період]],ABS((Податки[[#This Row],[Поточний період]]/Податки[[#This Row],[Попередній період]])-1),IF(AND(Податки[[#This Row],[Поточний період]]<Податки[[#This Row],[Попередній період]],Податки[[#This Row],[Попередній період]]<0),-((Податки[[#This Row],[Поточний період]]/Податки[[#This Row],[Попередній період]])-1),(Податки[[#This Row],[Поточний період]]/Податки[[#This Row],[Попередній період]])-1))),\"-\")","v":{"v":0,"d":"0.00%"}},{"$f":"IFERROR(IF(Податки[[#This Row],[Бюджет]]=Податки[[#This Row],[Поточний період]],0,IF(Податки[[#This Row],[Поточний період]]>Податки[[#This Row],[Бюджет]],ABS((Податки[[#This Row],[Поточний період]]/Податки[[#This Row],[Бюджет]])-1),IF(AND(Податки[[#This Row],[Поточний період]]<Податки[[#This Row],[Бюджет]],Податки[[#This Row],[Бюджет]]<0),-((Податки[[#This Row],[Поточний період]]/Податки[[#This Row],[Бюджет]])-1),(Податки[[#This Row],[Поточний період]]/Податки[[#This Row],[Бюджет]])-1))),\"-\")","v":{"v":0,"d":"0.00%"}}]
[null,"Загальна сума податків",null,{"$f":"SUBTOTAL(109,Податки[Попередній період])","v":0},{"$f":"SUBTOTAL(109,Податки[Бюджет])","v":0},{"$f":"SUBTOTAL(109,Податки[Поточний період])","v":0},{"$f":"IFERROR(SUBTOTAL(109,Податки[Поточний період як відсоток від збуту]),\"-\")","v":{"v":0,"d":"0.00%"}},{"$f":"SUBTOTAL(109,Податки[Відсоток відхилення від попереднього періоду])","v":{"v":0,"d":"0.00%"}},{"$f":"SUBTOTAL(109,Податки[Відсоток відхилення від бюджету])","v":{"v":0,"d":"0.00%"}}]

{"sheet":"Категорії","index":5,"n_rows":8,"n_cols":2,"rows_kept":8}
[null,"Категорії"]
[null,"Дохід від збуту"]
[null,"Собівартість збуту"]
[null,"Прибуток"]
[null,"Збут і маркетинг"]
[null,"Дослідження й розробка"]
[null,"Загальні й адміністративні"]
[null,"Податки"]